fUST/lending_fUST_20241207
["ID","MTS","AMOUNT","RATE_DAILY","PERIOD"]
[344468364,1733505921603,-667.935,0.00030137,120]
[344468365,1733505921630,-150.0,0.00030146,120]
[344468366,1733505921750,-410.65680722,0.00031,120]
[344468367,1733505922358,-278.182,0.00031,120]
[344468368,1733505923010,-286.16119278,0.00031,120]
[344468369,1733505923037,-300.0,0.00031,120]
[344468370,1733505923063,-300.0,0.00031,120]
[344468371,1733505923092,-66.10580722,0.0003161,120]
[344468372,1733505923608,-88.3149147,0.0003161,120]
[344468373,1733505923636,-250.0,0.00032,120]
[344468374,1733505923662,-151.0,0.00032411,120]
[344468375,1733505923688,-190.453,0.000325,120]
[344468376,1733505923715,-190.454,0.000325,120]
[344468377,1733505923743,-190.453,0.000325,120]
[344468378,1733505923769,-190.454,0.000325,120]
[344468379,1733505923794,-190.453,0.000325,120]
[344468380,1733505923820,-151.0,0.0003274,120]
[344468381,1733505923847,-1000.0,0.00032876,120]
[344468382,1733505923873,-228.59180722,0.00032876,120]
[344468383,1733505923899,-300.0,0.00033,120]
[344468384,1733505923927,-200.0,0.00034,120]
[344468385,1733505923955,-20.47805799,0.00034555,120]
[344468386,1733505924300,-3321.17372192,0.00034555,120]
[344468387,1733505924327,-278.182,0.0003474,120]
[344468388,1733505924353,-151.0,0.00034822,120]
[344468389,1733505924379,-1939.8701823,0.00035,120]
[344468390,1733505924408,-124.81113422,0.00035,120]
[344468391,1733505924869,259.25,0.0002001,2]
[344468392,1733506035230,500.95125,0.00030137,120]
[344468393,1733506040127,-162.611156,0.00026274,2]
[344468394,1733506040150,-247.928857,0.00028114,2]
[344468395,1733506040174,-300.0,0.00028245,2]
[344468396,1733506040198,-5710.05358905,0.00028246,2]
[344468416,1733506152091,-975.37394393,0.00020377,2]
[344468417,1733506152114,-4681.20786095,0.00021,2]
[344468418,1733506154102,-1829.05316952,0.00021,2]
[344468419,1733506154123,-163.0,0.00022,2]
[344468420,1733506154145,-1661.659924,0.00026,30]
[344468421,1733506154167,-161.0,0.00026574,2]
[344468422,1733506154190,-184.639238,0.00026903,2]
[344468423,1733506154211,-4840.81083847,0.00027,2]
[344468426,1733506231082,161.16715,0.00013973,2]
[344468427,1733506231300,161.16715,0.00024224,2]
[344468654,1733506238560,-3987.35892115,0.00028246,2]
[344468655,1733506238569,-36.46810159,0.0002863,2]
[344468656,1733506238641,-242.75089841,0.0002863,2]
[344468657,1733506238651,-160.0,0.00028831,3]
[344468658,1733506238662,-13162.77807431,0.00029,30]
[344468659,1733506238672,-25783.96626308,0.0003,2]
[344468660,1733506238683,-22950.97963427,0.0003,2]
[344468661,1733506238700,-1024.46794705,0.0003,2]
[344468669,1733506240531,-14939.83753953,0.0003,2]
[344468721,1733506243583,-6757.64136766,0.0003,2]
[344468726,1733506243767,-9415.05669193,0.0003,2]
[344468727,1733506243776,-4893.79171664,0.0003,2]
[344468728,1733506243786,-155.0,0.0003,2]
[344468729,1733506243795,-154.65,0.0003,31]
[344468730,1733506243804,-17451.99593258,0.0003,2]
[344468731,1733506243814,-745.33117856,0.00030036,2]
[344468732,1733506243823,-169.75425,0.0003006,2]
[344468733,1733506243832,-189.275,0.0003006,2]
[344468734,1733506243842,-745.33117856,0.00030098,2]
[344468735,1733506243851,-355.93,0.000301,2]
[344468736,1733506243861,-1344.0,0.00030134,35]
[344468737,1733506243870,-4230.11813558,0.00030134,2]
[344468754,1733506246702,-231.0,0.0003,2]
[344468755,1733506246712,-808.38106312,0.00030134,2]
[344468756,1733506247519,158.0,0.00022,2]
[344468764,1733506353016,2636.088166,0.00025,10]
[344468765,1733506361035,2550.76123552,0.00025,10]
[344468768,1733506684765,375.713437,0.00030137,120]
[344468773,1733506813868,183.069433,0.00013973,2]
[344468775,1733507130136,184.67096613,0.00031,120]
[344468777,1733507229097,-252.88674159,0.00025,2]
[344468778,1733507230104,-244.11395923,0.00025,2]
[344468779,1733507323510,213.66434687,0.00030137,120]
[344468780,1733507323534,68.12073013,0.00030137,120]
[344468784,1733507347124,-2797.33452558,0.00025,2]
[344468999,1733507434754,-168.224457,0.00028104,2]
[344469000,1733507434764,-255.921,0.0002863,2]
[344469001,1733507434775,-596.26494292,0.000299,2]
[344469002,1733507434785,-685.19632253,0.000299,2]
[344469003,1733507434795,-300.0,0.00029972,2]
[344469004,1733507434806,-327.41065204,0.00029973,2]
[344469005,1733507434815,-381.1591045,0.00029973,5]
[344469006,1733507434825,-500.0,0.00029973,5]
[344469007,1733507434834,-500.0,0.00029973,5]
[344469008,1733507434843,-596.26494284,0.00029977,2]
[344469009,1733507434852,-326.65153359,0.00029999,2]
[344469010,1733507434862,-298.34389473,0.00029999,2]
[344469011,1733507434871,-500.0,0.00029999,2]
[344469012,1733507434881,-500.0,0.00029999,2]
[344469013,1733507434895,-500.0,0.00029999,2]
[344469014,1733507434904,-500.0,0.00029999,2]
[344469015,1733507434914,-500.0,0.00029999,2]
[344469016,1733507434923,-500.0,0.00029999,2]
[344469017,1733507434934,-272.04549357,0.00029999,2]
[344469018,1733507434943,-500.0,0.00029999,2]
[344469019,1733507434953,-500.0,0.00029999,2]
[344469020,1733507434962,-500.0,0.00029999,2]
[344469021,1733507434972,-500.0,0.00029999,2]
[344469022,1733507434981,-500.0,0.00029999,2]
[344469023,1733507434991,-178.3993272,0.00029999,2]
[344469024,1733507435001,-530.65996489,0.00029999,2]
[344469025,1733507435010,-500.0,0.00029999,2]
[344469026,1733507435020,-500.0,0.00029999,2]
[344469027,1733507435030,-500.0,0.00029999,2]
[344469028,1733507435040,-500.0,0.00029999,2]
[344469029,1733507435049,-500.0,0.00029999,2]
[344469030,1733507435059,-500.0,0.00029999,2]
[344469031,1733507435069,-500.0,0.00029999,2]
[344469032,1733507435079,-500.0,0.00029999,2]
[344469033,1733507435088,-500.0,0.00029999,2]
[344469034,1733507435098,-500.0,0.00029999,2]
[344469035,1733507435190,-500.0,0.00029999,2]
[344469036,1733507435200,-500.0,0.00029999,2]
[344469037,1733507435209,-500.0,0.00029999,2]
[344469038,1733507435219,-500.0,0.00029999,2]
[344469039,1733507435229,-500.0,0.00029999,2]
[344469040,1733507435238,-500.0,0.00029999,2]
[344469041,1733507435247,-500.0,0.00029999,2]
[344469042,1733507435257,-500.0,0.00029999,2]
[344469043,1733507435266,-500.0,0.00029999,2]
[344469044,1733507435277,-500.0,0.00029999,2]
[344469045,1733507435286,-500.0,0.00029999,2]
[344469046,1733507435295,-500.0,0.00029999,2]
[344469047,1733507435305,-500.0,0.00029999,2]
[344469048,1733507435314,-685.19632249,0.0003,2]
[344469049,1733507435323,-44618.34842874,0.0003,2]
[344469050,1733507435332,-2446.89585832,0.0003,2]
[344469051,1733507435342,-8089.438948,0.0003,7]
[344469052,1733507435351,-20272.75597952,0.0003,7]
[344469053,1733507435363,-16649.54172992,0.0003,7]
[344469054,1733507435444,-28.09852684,0.0003,7]
[344469055,1733507435480,-2895.00548106,0.0003,7]
[344469056,1733507435491,-4859.19166666,0.0003,7]
[344469057,1733507435502,-30116.86003113,0.0003,7]
[344469089,1733507438152,-16242.45284447,0.0003,7]
[344469090,1733507438164,-1354.33119966,0.0003,7]
[344469091,1733507438176,-45042.25584244,0.0003,7]
[344469092,1733507438192,-7163.55004557,0.0003,7]
[344469093,1733507438204,-103041.72226332,0.0003,7]
[344469125,1733507442981,-361.95984905,0.0003,7]
[344469126,1733507443015,-286886.43152163,0.0003,7]
[344469127,1733507443062,-114092.19218182,0.0003,7]
[344469128,1733507443074,-41872.85552223,0.0003,7]
[344469129,1733507443086,-3927.61185854,0.0003,7]
[344469130,1733507443122,-30.26759664,0.0003,7]
[344469131,1733507443188,-5371.58700769,0.0003,7]
[344469132,1733507443203,-4602.25411097,0.0003,7]
[344469158,1733507445686,-153.0,0.0002946,2]
[344469159,1733507445696,-153.0,0.0002946,2]
[344469160,1733507445705,-153.0,0.0002946,2]
[344469161,1733507445714,-2360.33882457,0.0003,7]
[344469163,1733507445726,-298.5803,0.0003,7]
[344469165,1733507445737,-429.38324429,0.0003,7]
[344469168,1733507445748,-490.40668275,0.0003,7]
[344469170,1733507445759,-1009.1,0.0003,7]
[344469178,1733507445948,-153.0,0.0002946,2]
[344469179,1733507445958,-152.0,0.00029989,2]
[344469180,1733507445970,-831757.49568923,0.0003,7]
[344469181,1733507445979,-154.66,0.0003,31]
[344469182,1733507445988,-699.829772,0.0003,7]
[344469183,1733507445997,-699.829772,0.0003,7]
[344469184,1733507446006,-314.0,0.0003,2]
[344469185,1733507446015,-1000.0,0.00030037,2]
[344469186,1733507446025,-1000.0,0.00030038,2]
[344469187,1733507446035,-20612.43796761,0.00030043,3]
[344469188,1733507446043,-151.0,0.00030043,7]
[344469189,1733507446053,-346.306006,0.00030043,7]
[344469190,1733507446062,-346.306006,0.00030043,7]
[344469191,1733507446071,-699.829772,0.00030043,7]
[344469192,1733507446080,-699.829772,0.00030043,7]
[344469193,1733507446090,-1000.0,0.00030046,2]
[344469194,1733507446099,-596.26494284,0.00030055,2]
[344469195,1733507446108,-685.19632249,0.00030099,2]
[344469196,1733507446118,-320.34,0.000301,2]
[344469197,1733507446127,-337.0,0.000301,14]
[344469198,1733507446135,-596.26494284,0.00030132,2]
[344469199,1733507446145,-9970.96144329,0.00030134,2]
[344469200,1733507446154,-500.0,0.00030135,3]
[344469201,1733507446163,-150.01,0.00030135,2]
[344469202,1733507446172,-1963.16420083,0.00030135,2]
[344469203,1733507446181,-151.0,0.00030136,7]
[344469204,1733507446191,-151.0,0.00030136,7]
[344469205,1733507446208,-151.0,0.00030136,7]
[344469206,1733507446221,-151.0,0.00030136,7]
[344469207,1733507446231,-151.0,0.00030136,7]
[344469208,1733507446241,-151.0,0.00030136,7]
[344469209,1733507446251,-151.0,0.00030136,7]
[344469210,1733507446261,-151.0,0.00030136,7]
[344469211,1733507446271,-151.0,0.00030136,7]
[344469212,1733507446281,-151.0,0.00030136,7]
[344469213,1733507446291,-151.0,0.00030136,7]
[344469214,1733507446300,-151.0,0.00030136,7]
[344469215,1733507446310,-151.0,0.00030136,7]
[344469216,1733507446320,-170.360632,0.00030136,7]
[344469217,1733507446330,-151.0,0.00030136,7]
[344469218,1733507446340,-151.0,0.00030136,7]
[344469219,1733507446350,-151.0,0.00030136,7]
[344469220,1733507446360,-151.0,0.00030136,7]
[344469221,1733507446370,-151.0,0.00030136,7]
[344469222,1733507446379,-151.0,0.00030136,7]
[344469223,1733507446389,-151.0,0.00030136,7]
[344469224,1733507446399,-151.0,0.00030136,7]
[344469225,1733507446409,-151.0,0.00030136,7]
[344469226,1733507446418,-151.0,0.00030136,7]
[344469227,1733507446428,-151.0,0.00030136,7]
[344469228,1733507446438,-151.0,0.00030136,7]
[344469229,1733507446448,-273.310456,0.00030136,7]
[344469230,1733507446458,-151.0,0.00030136,7]
[344469231,1733507446467,-151.0,0.00030136,7]
[344469232,1733507446477,-151.0,0.00030136,7]
[344469233,1733507446487,-151.0,0.00030136,7]
[344469234,1733507446496,-151.0,0.00030136,7]
[344469235,1733507446506,-288.992852,0.00030136,7]
[344469236,1733507446516,-151.0,0.00030136,7]
[344469237,1733507446526,-151.0,0.00030136,7]
[344469238,1733507446631,-151.0,0.00030136,7]
[344469239,1733507446653,-151.0,0.00030136,7]
[344469240,1733507446663,-151.0,0.00030136,7]
[344469241,1733507446673,-151.0,0.00030136,7]
[344469242,1733507446683,-151.0,0.00030136,7]
[344469243,1733507446692,-151.0,0.00030136,7]
[344469244,1733507446702,-151.0,0.00030136,7]
[344469245,1733507446711,-151.0,0.00030136,7]
[344469246,1733507446721,-164.874827,0.00030136,7]
[344469247,1733507446730,-272.287742,0.00030136,7]
[344469248,1733507446740,-272.287742,0.00030136,7]
[344469249,1733507446749,-272.287742,0.00030136,7]
[344469250,1733507446759,-272.287742,0.00030136,7]
[344469251,1733507446768,-272.287742,0.00030136,7]
[344469252,1733507446778,-272.287742,0.00030136,7]
[344469253,1733507446789,-272.287742,0.00030136,7]
[344469254,1733507446798,-272.287742,0.00030136,7]
[344469255,1733507446807,-272.287742,0.00030136,7]
[344469256,1733507446816,-272.287742,0.00030136,7]
[344469257,1733507446826,-272.287742,0.00030136,7]
[344469258,1733507446836,-272.287742,0.00030136,7]
[344469259,1733507446845,-272.287742,0.00030136,7]
[344469260,1733507446854,-272.287742,0.00030136,7]
[344469261,1733507446864,-272.287742,0.00030136,7]
[344469262,1733507446873,-272.287742,0.00030136,7]
[344469263,1733507446884,-272.287742,0.00030136,7]
[344469264,1733507446894,-272.287742,0.00030136,7]
[344469265,1733507446907,-272.287742,0.00030136,7]
[344469266,1733507446916,-272.287735,0.00030136,7]
[344469267,1733507446926,-151.0,0.00030136,7]
[344469268,1733507446936,-151.0,0.00030136,7]
[344469269,1733507446946,-151.0,0.00030136,7]
[344469270,1733507446956,-151.0,0.00030136,7]
[344469271,1733507446965,-185.649909,0.00030136,7]
[344469272,1733507446975,-248.76888,0.00030136,7]
[344469273,1733507446985,-248.76888,0.00030136,7]
[344469274,1733507446994,-248.76888,0.00030136,7]
[344469275,1733507447003,-248.76888,0.00030136,7]
[344469276,1733507447013,-248.76888,0.00030136,7]
[344469277,1733507447025,-248.76888,0.00030136,7]
[344469278,1733507447038,-248.76888,0.00030136,7]
[344469279,1733507447048,-248.76888,0.00030136,7]
[344469280,1733507447058,-248.76888,0.00030136,7]
[344469281,1733507447068,-248.76888,0.00030136,7]
[344469282,1733507447078,-248.76888,0.00030136,7]
[344469283,1733507447088,-248.76888,0.00030136,7]
[344469284,1733507447099,-248.76888,0.00030136,7]
[344469285,1733507447110,-248.76888,0.00030136,7]
[344469286,1733507447119,-248.76888,0.00030136,7]
[344469287,1733507447130,-248.76888,0.00030136,7]
[344469288,1733507447141,-248.76888,0.00030136,7]
[344469289,1733507447151,-248.76888,0.00030136,7]
[344469290,1733507447161,-203.030329,0.00030136,7]
[344469291,1733507447171,-248.76888,0.00030136,7]
[344469292,1733507447181,-203.030329,0.00030136,7]
[344469293,1733507447191,-248.76888,0.00030136,7]
[344469294,1733507447200,-203.030329,0.00030136,7]
[344469295,1733507447210,-203.030329,0.00030136,7]
[344469296,1733507447220,-203.030329,0.00030136,7]
[344469297,1733507447231,-203.030329,0.00030136,7]
[344469298,1733507447242,-203.030329,0.00030136,7]
[344469299,1733507447251,-203.030329,0.00030136,7]
[344469300,1733507447261,-203.030329,0.00030136,7]
[344469301,1733507447271,-203.030329,0.00030136,7]
[344469302,1733507447285,-203.030329,0.00030136,7]
[344469303,1733507447296,-203.030329,0.00030136,7]
[344469304,1733507447306,-203.030329,0.00030136,7]
[344469305,1733507447316,-203.030329,0.00030136,7]
[344469306,1733507447327,-203.030329,0.00030136,7]
[344469307,1733507447338,-203.030329,0.00030136,7]
[344469308,1733507447348,-203.030329,0.00030136,7]
[344469309,1733507447359,-203.030329,0.00030136,7]
[344469310,1733507447368,-203.030329,0.00030136,7]
[344469311,1733507447379,-203.030329,0.00030136,7]
[344469312,1733507447389,-500.0,0.00030136,7]
[344469313,1733507447399,-174.69707687,0.00030136,7]
[344469314,1733507447409,-500.0,0.00030136,7]
[344469315,1733507447419,-500.0,0.00030136,7]
[344469316,1733507447429,-301.25057652,0.00030136,7]
[344469317,1733507447440,-321.714974,0.00030136,7]
[344469318,1733507447450,-321.714974,0.00030136,7]
[344469319,1733507447459,-321.714974,0.00030136,7]
[344469320,1733507447470,-321.714974,0.00030136,7]
[344469321,1733507447479,-321.714974,0.00030136,7]
[344469322,1733507447489,-321.714974,0.00030136,7]
[344469323,1733507447499,-321.714974,0.00030136,7]
[344469324,1733507447511,-321.714974,0.00030136,7]
[344469325,1733507447527,-321.714974,0.00030136,7]
[344469326,1733507447542,-321.714974,0.00030136,7]
[344469327,1733507447552,-321.714974,0.00030136,7]
[344469328,1733507447563,-321.714974,0.00030136,7]
[344469329,1733507447573,-321.714974,0.00030136,7]
[344469330,1733507447583,-321.714974,0.00030136,7]
[344469331,1733507447593,-321.714974,0.00030136,7]
[344469332,1733507447602,-321.714974,0.00030136,7]
[344469333,1733507447612,-321.714974,0.00030136,7]
[344469334,1733507447622,-321.714974,0.00030136,7]
[344469335,1733507447631,-321.714974,0.00030136,7]
[344469336,1733507447641,-321.714965,0.00030136,7]
[344469337,1733507447650,-151.0,0.00030136,7]
[344469338,1733507447660,-151.0,0.00030136,7]
[344469339,1733507447671,-151.0,0.00030136,7]
[344469340,1733507447680,-151.0,0.00030136,7]
[344469341,1733507447690,-151.0,0.00030136,7]
[344469342,1733507447699,-151.0,0.00030136,7]
[344469343,1733507447709,-151.0,0.00030136,7]
[344469344,1733507447719,-154.223238,0.00030136,7]
[344469345,1733507447728,-540.146602,0.00030136,7]
[344469346,1733507447738,-540.146602,0.00030136,7]
[344469347,1733507447747,-540.146602,0.00030136,7]
[344469348,1733507447756,-540.146602,0.00030136,7]
[344469349,1733507447766,-540.146602,0.00030136,7]
[344469350,1733507447775,-540.146611,0.00030136,7]
[344469351,1733507447787,-151.0,0.00030136,7]
[344469352,1733507447797,-170.709209,0.00030136,7]
[344469353,1733507447807,-500.0,0.00030136,7]
[344469354,1733507447816,-313.960073,0.00030136,7]
[344469355,1733507447826,-313.960073,0.00030136,7]
[344469356,1733507447836,-313.960073,0.00030136,7]
[344469357,1733507447911,-313.960073,0.00030136,7]
[344469358,1733507447921,-313.960073,0.00030136,7]
[344469359,1733507447931,-313.960073,0.00030136,7]
[344469360,1733507447941,-313.960073,0.00030136,7]
[344469361,1733507447951,-313.960073,0.00030136,7]
[344469362,1733507447960,-313.960073,0.00030136,7]
[344469363,1733507447969,-313.960073,0.00030136,7]
[344469364,1733507447979,-313.960073,0.00030136,7]
[344469365,1733507447989,-313.960073,0.00030136,7]
[344469366,1733507447999,-313.960073,0.00030136,7]
[344469367,1733507448009,-313.960073,0.00030136,7]
[344469368,1733507448019,-313.960073,0.00030136,7]
[344469369,1733507448028,-313.960073,0.00030136,7]
[344469370,1733507448041,-313.960073,0.00030136,7]
[344469371,1733507448050,-313.960073,0.00030136,7]
[344469372,1733507448061,-313.960073,0.00030136,7]
[344469373,1733507448070,-313.960076,0.00030136,7]
[344469374,1733507448080,-501.73065078,0.00030136,7]
[344469375,1733507448089,-500.0,0.00030136,7]
[344469376,1733507448099,-359.05083487,0.00030136,7]
[344469377,1733507448109,-500.0,0.00030136,7]
[344469378,1733507448119,-500.0,0.00030136,7]
[344469379,1733507448129,-500.0,0.00030136,7]
[344469380,1733507448139,-751.707123,0.00030136,7]
[344469381,1733507448149,-527.10856077,0.00030136,7]
[344469382,1733507448159,-751.707123,0.00030136,7]
[344469383,1733507448170,-751.707123,0.00030136,7]
[344469384,1733507448181,-751.707123,0.00030136,7]
[344469385,1733507448192,-751.707123,0.00030136,7]
[344469386,1733507448205,-751.707123,0.00030136,7]
[344469387,1733507448216,-751.707123,0.00030136,7]
[344469388,1733507448227,-751.707123,0.00030136,7]
[344469389,1733507448239,-751.707123,0.00030136,7]
[344469390,1733507448250,-751.707123,0.00030136,7]
[344469391,1733507448261,-751.707123,0.00030136,7]
[344469392,1733507448272,-751.707123,0.00030136,7]
[344469393,1733507448288,-751.707123,0.00030136,7]
[344469394,1733507448299,-751.707123,0.00030136,7]
[344469395,1733507448310,-751.707123,0.00030136,7]
[344469396,1733507448320,-500.0,0.00030136,7]
[344469397,1733507448541,-500.0,0.00030136,7]
[344469398,1733507448553,-751.707123,0.00030136,7]
[344469399,1733507448564,-500.0,0.00030136,7]
[344469400,1733507448575,-751.707117,0.00030136,7]
[344469401,1733507448585,-500.0,0.00030136,7]
[344469402,1733507448595,-500.0,0.00030136,7]
[344469403,1733507448606,-500.0,0.00030136,7]
[344469404,1733507448616,-500.0,0.00030136,7]
[344469405,1733507448625,-500.0,0.00030136,7]
[344469406,1733507448635,-500.0,0.00030136,7]
[344469407,1733507448645,-500.0,0.00030136,7]
[344469408,1733507448655,-500.0,0.00030136,7]
[344469409,1733507448664,-506.82989933,0.00030136,7]
[344469410,1733507448674,-500.0,0.00030136,7]
[344469411,1733507448684,-500.0,0.00030136,7]
[344469412,1733507448694,-500.0,0.00030136,7]
[344469413,1733507448704,-500.0,0.00030136,7]
[344469414,1733507448714,-500.0,0.00030136,7]
[344469415,1733507448723,-500.0,0.00030136,7]
[344469416,1733507448733,-500.0,0.00030136,7]
[344469417,1733507448743,-500.0,0.00030136,7]
[344469418,1733507448752,-500.0,0.00030136,7]
[344469419,1733507448761,-500.0,0.00030136,7]
[344469420,1733507448771,-500.0,0.00030136,7]
[344469421,1733507448783,-500.0,0.00030136,7]
[344469422,1733507448792,-500.0,0.00030136,7]
[344469423,1733507448802,-500.0,0.00030136,7]
[344469424,1733507448811,-500.0,0.00030136,7]
[344469425,1733507448821,-469.94595441,0.00030136,7]
[344469426,1733507448831,-500.0,0.00030136,7]
[344469427,1733507448840,-500.0,0.00030136,7]
[344469428,1733507448850,-500.0,0.00030136,7]
[344469429,1733507448859,-500.0,0.00030136,7]
[344469430,1733507448868,-500.0,0.00030136,7]
[344469431,1733507448878,-500.0,0.00030136,7]
[344469432,1733507448887,-500.0,0.00030136,7]
[344469433,1733507448900,-500.0,0.00030136,7]
[344469434,1733507448910,-500.0,0.00030136,7]
[344469435,1733507448920,-500.0,0.00030136,7]
[344469436,1733507448929,-500.0,0.00030136,7]
[344469437,1733507448940,-500.0,0.00030136,7]
[344469438,1733507448949,-500.0,0.00030136,7]
[344469439,1733507448959,-500.0,0.00030136,7]
[344469440,1733507448970,-606.61721435,0.00030136,7]
[344469441,1733507448981,-500.0,0.00030136,7]
[344469442,1733507448991,-500.0,0.00030136,7]
[344469443,1733507449000,-500.0,0.00030136,7]
[344469444,1733507449010,-500.0,0.00030136,7]
[344469445,1733507449020,-500.0,0.00030136,7]
[344469446,1733507449029,-500.0,0.00030136,7]
[344469447,1733507449042,-500.0,0.00030136,7]
[344469448,1733507449053,-500.0,0.00030136,7]
[344469449,1733507449062,-500.0,0.00030136,7]
[344469450,1733507449072,-500.0,0.00030136,7]
[344469451,1733507449081,-500.0,0.00030136,7]
[344469452,1733507449091,-500.0,0.00030136,7]
[344469453,1733507449101,-500.0,0.00030136,7]
[344469454,1733507449111,-500.0,0.00030136,7]
[344469455,1733507449120,-500.0,0.00030136,7]
[344469456,1733507449130,-500.0,0.00030136,7]
[344469457,1733507449140,-500.0,0.00030136,7]
[344469458,1733507449149,-500.0,0.00030136,7]
[344469459,1733507449159,-163.92544747,0.00030136,7]
[344469460,1733507449169,-500.0,0.00030136,7]
[344469461,1733507449179,-500.0,0.00030136,7]
[344469462,1733507449189,-500.0,0.00030136,7]
[344469463,1733507449198,-500.0,0.00030136,7]
[344469464,1733507449208,-500.0,0.00030136,7]
[344469465,1733507449284,-500.0,0.00030136,7]
[344469466,1733507449295,-500.0,0.00030136,7]
[344469467,1733507449306,-500.0,0.00030136,7]
[344469468,1733507449316,-500.0,0.00030136,7]
[344469469,1733507449326,-500.0,0.00030136,7]
[344469470,1733507449337,-500.0,0.00030136,7]
[344469471,1733507449347,-500.0,0.00030136,7]
[344469472,1733507449358,-500.0,0.00030136,7]
[344469473,1733507449368,-500.0,0.00030136,7]
[344469474,1733507449379,-500.0,0.00030136,7]
[344469475,1733507449388,-500.0,0.00030136,7]
[344469476,1733507449399,-500.0,0.00030136,7]
[344469477,1733507449409,-500.0,0.00030136,7]
[344469478,1733507449419,-500.0,0.00030136,7]
[344469479,1733507449429,-500.0,0.00030136,7]
[344469480,1733507449440,-170.27372478,0.00030136,7]
[344469481,1733507449449,-500.0,0.00030136,7]
[344469482,1733507449459,-200.0,0.00030136,7]
[344469483,1733507449470,-500.0,0.00030136,7]
[344469484,1733507449480,-200.0,0.00030136,7]
[344469485,1733507449489,-500.0,0.00030136,7]
[344469486,1733507449499,-200.0,0.00030136,7]
[344469487,1733507449510,-500.0,0.00030136,7]
[344469488,1733507449521,-200.0,0.00030136,7]
[344469489,1733507449532,-500.0,0.00030136,7]
[344469490,1733507449542,-200.0,0.00030136,7]
[344469491,1733507449551,-207.73351394,0.00030136,7]
[344469492,1733507449561,-310.51404145,0.00030136,7]
[344469493,1733507449571,-500.0,0.00030136,7]
[344469494,1733507449580,-197.163682,0.00030136,7]
[344469495,1733507449589,-500.0,0.00030136,7]
[344469496,1733507449599,-151.0,0.00030136,7]
[344469497,1733507449608,-500.0,0.00030136,7]
[344469498,1733507449618,-197.163682,0.00030136,7]
[344469499,1733507449627,-500.0,0.00030136,7]
[344469500,1733507449637,-151.0,0.00030136,7]
[344469501,1733507449647,-618.32086807,0.00030136,7]
[344469502,1733507449657,-500.0,0.00030136,7]
[344469503,1733507449667,-500.0,0.00030136,7]
[344469504,1733507449676,-197.163682,0.00030136,7]
[344469505,1733507449686,-151.0,0.00030136,7]
[344469506,1733507449695,-500.0,0.00030136,7]
[344469507,1733507449705,-197.163682,0.00030136,7]
[344469508,1733507449714,-500.0,0.00030136,7]
[344469509,1733507449723,-151.0,0.00030136,7]
[344469510,1733507449733,-197.163682,0.00030136,7]
[344469511,1733507449742,-151.0,0.00030136,7]
[344469512,1733507449751,-405.11161089,0.00030136,7]
[344469513,1733507449761,-197.163682,0.00030136,7]
[344469514,1733507449774,-296.012728,0.00030136,7]
[344469515,1733507449786,-197.163682,0.00030136,7]
[344469516,1733507449795,-510.54695828,0.00030136,7]
[344469517,1733507449805,-500.0,0.00030136,7]
[344469518,1733507449814,-500.0,0.00030136,7]
[344469519,1733507449823,-500.0,0.00030136,7]